[Event "Betsys MČR v online bleskovém šachu 2021"]
[Site "Chess.com"]
[Date "2021.04.17"]
[Round "5"]
[White "RomanHlavicka"]
[Black "Jaja15F"]
[Result "1-0"]
[WhiteElo "1515"]
[BlackElo "1117"]
[TimeControl "180+1"]
[EndTime "9:47:42 PDT"]
[Termination "Uživatel RomanHlavicka zvítězil na čas"]

1. e4 {[%clk 0:03:00.9]} 1... e5 {[%clk 0:02:58.8]} 2. Nf3 {[%clk 0:03:00.3]}
2... Nc6 {[%clk 0:02:58.9]} 3. d4 {[%clk 0:03:00.3]} 3... exd4 {[%clk
0:02:55.5]} 4. Bc4 {[%clk 0:03:00]} 4... h6 {[%clk 0:02:53.5]} 5. c3 {[%clk
0:02:59.7]} 5... dxc3 {[%clk 0:02:52]} 6. Qb3 {[%clk 0:02:58.6]} 6... Qe7 {[%clk
0:02:38.9]} 7. O-O {[%clk 0:02:54.7]} 7... Nf6 {[%clk 0:02:35.9]} 8. Nxc3 {[%clk
0:02:49.8]} 8... Na5 {[%clk 0:02:30.6]} 9. Qb4 {[%clk 0:02:48.6]} 9... Nxc4
{[%clk 0:02:30.1]} 10. Qxc4 {[%clk 0:02:46.8]} 10... Qc5 {[%clk 0:02:21.7]} 11.
Qxc5 {[%clk 0:02:41.9]} 11... Bxc5 {[%clk 0:02:19.6]} 12. e5 {[%clk 0:02:40.2]}
12... Ng4 {[%clk 0:02:13.9]} 13. h3 {[%clk 0:02:29.5]} 13... Nxf2 {[%clk
0:02:12.4]} 14. Rxf2 {[%clk 0:02:29.2]} 14... Bxf2+ {[%clk 0:02:09.9]} 15. Kxf2
{[%clk 0:02:28.5]} 15... O-O {[%clk 0:02:06.5]} 16. Nd5 {[%clk 0:02:23.1]} 16...
d6 {[%clk 0:02:04.2]} 17. Nxc7 {[%clk 0:02:17.6]} 17... Rb8 {[%clk 0:02:02.3]}
18. exd6 {[%clk 0:02:17.4]} 18... Rd8 {[%clk 0:02:00.4]} 19. Bf4 {[%clk
0:02:14.9]} 19... g5 {[%clk 0:01:58.7]} 20. Be5 {[%clk 0:02:07.6]} 20... Be6
{[%clk 0:01:45.3]} 21. Nd4 {[%clk 0:02:01.2]} 21... Bc4 {[%clk 0:01:36.3]} 22.
b3 {[%clk 0:01:55]} 22... Ba6 {[%clk 0:01:33.7]} 23. Re1 {[%clk 0:01:51.5]}
23... f6 {[%clk 0:01:20.9]} 24. Bh2 {[%clk 0:01:43.9]} 24... Kg7 {[%clk
0:00:58.9]} 25. Nf5+ {[%clk 0:01:41.6]} 25... Kg6 {[%clk 0:00:56.4]} 26. g4
{[%clk 0:01:37.3]} 26... h5 {[%clk 0:00:54.6]} 27. Re7 {[%clk 0:01:35.4]} 27...
hxg4 {[%clk 0:00:47.2]} 28. hxg4 {[%clk 0:01:33.8]} 28... Rg8 {[%clk 0:00:43.7]}
29. Ne6 {[%clk 0:01:19.5]} 29... Bd3 {[%clk 0:00:27.7]} 30. Nfd4 {[%clk
0:01:04.6]} 30... Rbd8 {[%clk 0:00:20.3]} 31. Ke3 {[%clk 0:00:52.3]} 31... Ba6
{[%clk 0:00:17.9]} 32. d7 {[%clk 0:00:45.9]} 32... b6 {[%clk 0:00:15.8]} 33. Re8
{[%clk 0:00:41.3]} 33... Rdxe8 {[%clk 0:00:13.8]} 34. dxe8=Q+ {[%clk 0:00:39.9]}
34... Rxe8 {[%clk 0:00:12.1]} 35. Kf3 {[%clk 0:00:35.7]} 35... Bb7+ {[%clk
0:00:10.9]} 36. Ke3 {[%clk 0:00:32.8]} 36... Bd5 {[%clk 0:00:09.4]} 37. Kd3
{[%clk 0:00:25.4]} 37... Bxe6 {[%clk 0:00:08.7]} 38. Nxe6 {[%clk 0:00:20.5]}
38... Rxe6 {[%clk 0:00:08.1]} 39. Kd2 {[%clk 0:00:15.6]} 1-0

[Event "Betsys MČR v online bleskovém šachu 2021"]
[Site "Chess.com"]
[Date "2021.04.17"]
[Round "5"]
[White "DominikS3"]
[Black "rakintsev"]
[Result "1-0"]
[WhiteElo "1330"]
[BlackElo "1743"]
[TimeControl "180+1"]
[EndTime "9:47:45 PDT"]
[Termination "Uživatel DominikS3 zvítězil po vzdání soupeře"]

1. d4 {[%clk 0:03:00.9]} 1... c6 {[%clk 0:02:57.5]} 2. c4 {[%clk 0:03:00.9]}
2... d5 {[%clk 0:02:57.5]} 3. Nc3 {[%clk 0:03:01.3]} 3... Nf6 {[%clk 0:02:56.4]}
4. Bg5 {[%clk 0:03:01]} 4... Bf5 {[%clk 0:02:50.5]} 5. e3 {[%clk 0:03:00.2]}
5... h6 {[%clk 0:02:48.1]} 6. Bh4 {[%clk 0:02:59.4]} 6... e6 {[%clk 0:02:41.8]}
7. Nf3 {[%clk 0:02:58.7]} 7... Be7 {[%clk 0:02:41.3]} 8. Rc1 {[%clk 0:02:57.9]}
8... O-O {[%clk 0:02:38.8]} 9. cxd5 {[%clk 0:02:57.5]} 9... Nxd5 {[%clk
0:02:29]} 10. Nxd5 {[%clk 0:02:55.4]} 10... Bxh4 {[%clk 0:02:25.1]} 11. Nc3
{[%clk 0:02:48.3]} 11... Be7 {[%clk 0:02:19.4]} 12. Bd3 {[%clk 0:02:45]} 12...
Bxd3 {[%clk 0:02:15.9]} 13. Qxd3 {[%clk 0:02:44.9]} 13... Nd7 {[%clk 0:02:15.8]}
14. O-O {[%clk 0:02:44.4]} 14... Nb6 {[%clk 0:02:13.2]} 15. a3 {[%clk
0:02:43.6]} 15... c5 {[%clk 0:02:02.5]} 16. Rfd1 {[%clk 0:02:28.4]} 16... cxd4
{[%clk 0:01:59.3]} 17. Qxd4 {[%clk 0:02:26.1]} 17... Qxd4 {[%clk 0:01:58.7]} 18.
Rxd4 {[%clk 0:02:24.5]} 18... Bf6 {[%clk 0:01:58.5]} 19. Rdd1 {[%clk 0:02:19.8]}
19... Rac8 {[%clk 0:01:56.4]} 20. Nd4 {[%clk 0:02:13.2]} 20... Nc4 {[%clk
0:01:51.3]} 21. Rc2 {[%clk 0:02:09]} 21... Rfd8 {[%clk 0:01:32.9]} 22. Ne4
{[%clk 0:01:53.7]} 22... e5 {[%clk 0:01:20.5]} 23. Nxf6+ {[%clk 0:01:52.1]}
23... gxf6 {[%clk 0:01:20.5]} 24. Rdc1 {[%clk 0:01:48.4]} 24... exd4 {[%clk
0:01:14.8]} 25. Rxc4 {[%clk 0:01:46]} 25... Rxc4 {[%clk 0:01:14.3]} 26. Rxc4
{[%clk 0:01:44.3]} 26... d3 {[%clk 0:01:14.5]} 27. Rc1 {[%clk 0:01:41.8]} 27...
Kf8 {[%clk 0:01:10.3]} 28. Rd1 {[%clk 0:01:39.3]} 28... Ke7 {[%clk 0:01:05.8]}
29. Kf1 {[%clk 0:01:39]} 29... Ke6 {[%clk 0:01:05.8]} 30. Ke1 {[%clk 0:01:38.8]}
30... f5 {[%clk 0:01:03.9]} 31. Kd2 {[%clk 0:01:37.8]} 31... Ke5 {[%clk
0:01:03.2]} 32. Kc3 {[%clk 0:01:37.5]} 32... Ke4 {[%clk 0:00:59.4]} 33. Rd2
{[%clk 0:01:25.3]} 33... Rc8+ {[%clk 0:00:54.7]} 34. Kb3 {[%clk 0:01:23.5]}
34... b6 {[%clk 0:00:53]} 35. a4 {[%clk 0:01:21.4]} 35... a6 {[%clk 0:00:52.6]}
36. h3 {[%clk 0:01:15.5]} 36... h5 {[%clk 0:00:52.1]} 37. h4 {[%clk 0:01:14.8]}
37... f6 {[%clk 0:00:50.6]} 38. g3 {[%clk 0:01:11.2]} 38... Rc1 {[%clk
0:00:47.4]} 39. a5 {[%clk 0:01:03.8]} 39... b5 {[%clk 0:00:45.8]} 40. Kb4 {[%clk
0:00:50.1]} 40... Rc2 {[%clk 0:00:44.9]} 41. Rd1 {[%clk 0:00:48.4]} 41... Rxb2+
{[%clk 0:00:41]} 42. Kc3 {[%clk 0:00:47.6]} 42... Rc2+ {[%clk 0:00:38.3]} 43.
Kb3 {[%clk 0:00:46.6]} 43... Rxf2 {[%clk 0:00:37.8]} 44. Kc3 {[%clk 0:00:43.7]}
44... Rc2+ {[%clk 0:00:37.3]} 45. Kb3 {[%clk 0:00:43.5]} 45... Kxe3 {[%clk
0:00:36]} 46. Rf1 {[%clk 0:00:40.5]} 46... d2 {[%clk 0:00:33.9]} 47. Kxc2 {[%clk
0:00:39.2]} 47... Ke2 {[%clk 0:00:33.5]} 48. Rd1 {[%clk 0:00:38.3]} 48... b4
{[%clk 0:00:31.2]} 49. Rxd2+ {[%clk 0:00:39.2]} 49... Ke3 {[%clk 0:00:30.7]} 50.
Rd3+ {[%clk 0:00:38.6]} 50... Ke4 {[%clk 0:00:29.4]} 51. Rb3 {[%clk 0:00:38]}
51... Ke5 {[%clk 0:00:23.3]} 52. Rxb4 {[%clk 0:00:36.8]} 52... Ke6 {[%clk
0:00:19.2]} 53. Rf4 {[%clk 0:00:35.1]} 1-0

[Event "Betsys MČR v online bleskovém šachu 2021"]
[Site "Chess.com"]
[Date "2021.04.17"]
[Round "5"]
[White "Maty_2010"]
[Black "Svisthorsky"]
[Result "1-0"]
[WhiteElo "993"]
[BlackElo "1458"]
[TimeControl "180+1"]
[EndTime "9:47:47 PDT"]
[Termination "Uživatel Maty_2010 zvítězil na čas"]

1. e4 {[%clk 0:03:00.4]} 1... e5 {[%clk 0:02:59.9]} 2. Bc4 {[%clk 0:03:00.7]}
2... Nf6 {[%clk 0:02:59]} 3. Nf3 {[%clk 0:02:59.9]} 3... Nc6 {[%clk 0:02:54]} 4.
Ng5 {[%clk 0:02:58.9]} 4... d5 {[%clk 0:02:50.2]} 5. exd5 {[%clk 0:02:57]} 5...
Nd4 {[%clk 0:02:49.8]} 6. O-O {[%clk 0:02:53.6]} 6... Bd6 {[%clk 0:02:26.4]} 7.
d3 {[%clk 0:02:47.9]} 7... h6 {[%clk 0:02:22.4]} 8. Ne4 {[%clk 0:02:32.8]} 8...
Nxe4 {[%clk 0:02:09.1]} 9. dxe4 {[%clk 0:02:32.5]} 9... O-O {[%clk 0:02:06]} 10.
c3 {[%clk 0:02:29]} 10... b5 {[%clk 0:02:04.3]} 11. Bd3 {[%clk 0:02:25.9]} 11...
Qh4 {[%clk 0:01:51.4]} 12. cxd4 {[%clk 0:02:16.8]} 12... exd4 {[%clk 0:01:52.3]}
13. g3 {[%clk 0:02:15.2]} 13... Qe7 {[%clk 0:01:43.8]} 14. Qf3 {[%clk
0:01:48.9]} 14... Bh3 {[%clk 0:01:35.8]} 15. Re1 {[%clk 0:01:43.7]} 15... a6
{[%clk 0:01:34.8]} 16. Na3 {[%clk 0:01:32.7]} 16... Rac8 {[%clk 0:01:28.5]} 17.
b3 {[%clk 0:01:18.1]} 17... Qd7 {[%clk 0:01:09.3]} 18. e5 {[%clk 0:01:09.7]}
18... Bb4 {[%clk 0:01:06.1]} 19. Re2 {[%clk 0:01:01.2]} 19... Bc3 {[%clk
0:01:03.2]} 20. Bb2 {[%clk 0:00:57.1]} 20... Bg4 {[%clk 0:00:58.1]} 21. Qe4
{[%clk 0:00:51.1]} 21... g6 {[%clk 0:00:53.7]} 22. Rc2 {[%clk 0:00:42.5]} 22...
c5 {[%clk 0:00:32.2]} 23. Bxc3 {[%clk 0:00:31.5]} 23... Bf5 {[%clk 0:00:27.6]}
24. Qh4 {[%clk 0:00:21.3]} 24... Bxd3 {[%clk 0:00:22.3]} 25. Rd2 {[%clk
0:00:20.7]} 25... dxc3 {[%clk 0:00:19.2]} 26. Rxd3 {[%clk 0:00:20.5]} 26... b4
{[%clk 0:00:17]} 27. Nc2 {[%clk 0:00:18.9]} 27... Qf5 {[%clk 0:00:16.3]} 28.
Rdd1 {[%clk 0:00:17.1]} 28... Qxc2 {[%clk 0:00:15.8]} 29. Rac1 {[%clk
0:00:15.8]} 29... Qf5 {[%clk 0:00:15.3]} 30. Qxh6 {[%clk 0:00:15.1]} 30... Qxe5
{[%clk 0:00:15.1]} 31. Re1 {[%clk 0:00:14.1]} 31... Qxd5 {[%clk 0:00:13.9]} 32.
Rcd1 {[%clk 0:00:14.4]} 32... Qf5 {[%clk 0:00:11.9]} 33. f3 {[%clk 0:00:11.9]}
33... Qxf3 {[%clk 0:00:08.8]} 34. Re3 {[%clk 0:00:11.1]} 34... Qf5 {[%clk
0:00:06.9]} 35. Rf1 {[%clk 0:00:08.6]} 35... Qd7 {[%clk 0:00:03.1]} 36. Ref3
{[%clk 0:00:07.1]} 36... Rc7 {[%clk 0:00:01.7]} 37. Qh4 {[%clk 0:00:03.7]} 1-0

[Event "Betsys MČR v online bleskovém šachu 2021"]
[Site "Chess.com"]
[Date "2021.04.17"]
[Round "5"]
[White "ReitteN"]
[Black "phil3"]
[Result "0-1"]
[WhiteElo "1773"]
[BlackElo "2148"]
[TimeControl "180+1"]
[EndTime "9:47:49 PDT"]
[Termination "Uživatel phil3 zvítězil na čas"]

1. c4 {[%clk 0:03:00.1]} 1... c6 {[%clk 0:02:59.7]} 2. g3 {[%clk 0:02:57.2]}
2... d5 {[%clk 0:02:59.8]} 3. cxd5 {[%clk 0:02:55.6]} 3... cxd5 {[%clk
0:02:59.7]} 4. Bg2 {[%clk 0:02:55.7]} 4... Nf6 {[%clk 0:02:59.9]} 5. d4 {[%clk
0:02:53.7]} 5... Nc6 {[%clk 0:02:59.2]} 6. Nc3 {[%clk 0:02:53.8]} 6... a6 {[%clk
0:02:59.3]} 7. Nf3 {[%clk 0:02:53.8]} 7... Bf5 {[%clk 0:02:57.7]} 8. a3 {[%clk
0:02:53.3]} 8... h6 {[%clk 0:02:57.4]} 9. O-O {[%clk 0:02:53]} 9... e6 {[%clk
0:02:57.9]} 10. Bf4 {[%clk 0:02:52.6]} 10... Bd6 {[%clk 0:02:58.1]} 11. Bxd6
{[%clk 0:02:50.7]} 11... Qxd6 {[%clk 0:02:58.6]} 12. Rc1 {[%clk 0:02:50.3]}
12... O-O {[%clk 0:02:58.1]} 13. h3 {[%clk 0:02:29.2]} 13... Bh7 {[%clk
0:02:57.3]} 14. e3 {[%clk 0:02:28.5]} 14... Rac8 {[%clk 0:02:57.4]} 15. Na4
{[%clk 0:02:19.8]} 15... Nd7 {[%clk 0:02:55.3]} 16. b4 {[%clk 0:02:11.5]} 16...
Rc7 {[%clk 0:02:53.4]} 17. Nc5 {[%clk 0:02:08.8]} 17... Rfc8 {[%clk 0:02:50.7]}
18. Nd2 {[%clk 0:02:02.9]} 18... Nxc5 {[%clk 0:02:42.5]} 19. bxc5 {[%clk
0:02:00.7]} 19... Qe7 {[%clk 0:02:42.4]} 20. Nb3 {[%clk 0:01:53.8]} 20... Rd8
{[%clk 0:02:35.2]} 21. Qd2 {[%clk 0:01:40.5]} 21... e5 {[%clk 0:02:34.3]} 22.
Rfe1 {[%clk 0:01:28.6]} 22... Bg6 {[%clk 0:02:21.5]} 23. Na5 {[%clk 0:01:12.6]}
23... Nxa5 {[%clk 0:02:08.3]} 24. Qxa5 {[%clk 0:01:13.5]} 24... Bf5 {[%clk
0:01:52.9]} 25. Kh2 {[%clk 0:01:02.2]} 25... h5 {[%clk 0:01:48.5]} 26. Bf3
{[%clk 0:00:53.6]} 26... g6 {[%clk 0:01:40.2]} 27. Qc3 {[%clk 0:00:37.3]} 27...
e4 {[%clk 0:01:18.7]} 28. Bg2 {[%clk 0:00:32.2]} 28... Qe6 {[%clk 0:01:11.1]}
29. Bf1 {[%clk 0:00:28.1]} 29... Rdc8 {[%clk 0:01:07.6]} 30. Qa5 {[%clk
0:00:26.8]} 30... Rc6 {[%clk 0:00:44.5]} 31. Rb1 {[%clk 0:00:24.4]} 31... R8c7
{[%clk 0:00:42.7]} 32. Rb2 {[%clk 0:00:13.7]} 32... Qf6 {[%clk 0:00:36.8]} 33.
Reb1 {[%clk 0:00:09.2]} 33... h4 {[%clk 0:00:36.9]} 34. g4 {[%clk 0:00:07.4]}
34... Bc8 {[%clk 0:00:36.4]} 35. Rb6 {[%clk 0:00:05.6]} 35... Qxf2+ {[%clk
0:00:32.9]} 36. Kh1 {[%clk 0:00:04.2]} 36... Qf6 {[%clk 0:00:17.2]} 37. Rxc6
{[%clk 0:00:02.8]} 37... Qxc6 {[%clk 0:00:17.8]} 38. Rb6 {[%clk 0:00:02.6]}
38... Qd7 {[%clk 0:00:14.8]} 39. Rd6 {[%clk 0:00:02.2]} 39... Qe7 {[%clk
0:00:13.7]} 40. Qb6 {[%clk 0:00:02.1]} 40... Be6 {[%clk 0:00:11]} 41. Rxe6
{[%clk 0:00:01.4]} 41... fxe6 {[%clk 0:00:10.5]} 0-1

[Event "Betsys MČR v online bleskovém šachu 2021"]
[Site "Chess.com"]
[Date "2021.04.17"]
[Round "5"]
[White "machajda"]
[Black "fadamos"]
[Result "0-1"]
[WhiteElo "2031"]
[BlackElo "2263"]
[TimeControl "180+1"]
[EndTime "9:47:50 PDT"]
[Termination "Uživatel fadamos zvítězil na čas"]

1. e4 {[%clk 0:03:00.9]} 1... d6 {[%clk 0:03:00.1]} 2. d4 {[%clk 0:02:59.7]}
2... Nf6 {[%clk 0:03:00.5]} 3. Nc3 {[%clk 0:02:59.2]} 3... g6 {[%clk 0:03:01.2]}
4. Be3 {[%clk 0:02:59.6]} 4... a6 {[%clk 0:03:00.5]} 5. f3 {[%clk 0:03:00]} 5...
b5 {[%clk 0:03:00.9]} 6. Qd2 {[%clk 0:03:00.3]} 6... Nbd7 {[%clk 0:03:01.5]} 7.
O-O-O {[%clk 0:03:00.6]} 7... Bb7 {[%clk 0:03:01.7]} 8. h4 {[%clk 0:03:00.6]}
8... Nb6 {[%clk 0:03:01.8]} 9. Qe1 {[%clk 0:02:55]} 9... Bg7 {[%clk 0:02:59.5]}
10. g4 {[%clk 0:02:53.2]} 10... h5 {[%clk 0:02:59.3]} 11. gxh5 {[%clk
0:02:46.9]} 11... Nxh5 {[%clk 0:02:59.8]} 12. Kb1 {[%clk 0:02:44.6]} 12... c6
{[%clk 0:02:18.6]} 13. Bh3 {[%clk 0:02:39.8]} 13... Qc7 {[%clk 0:02:18.4]} 14.
Nce2 {[%clk 0:02:26.6]} 14... Nc4 {[%clk 0:02:16.1]} 15. Bc1 {[%clk 0:02:25]}
15... c5 {[%clk 0:02:16.2]} 16. d5 {[%clk 0:02:21.8]} 16... Bc8 {[%clk
0:01:51.3]} 17. Qf1 {[%clk 0:01:54.8]} 17... Bd7 {[%clk 0:01:49.1]} 18. Bxd7+
{[%clk 0:01:53.5]} 18... Qxd7 {[%clk 0:01:49.5]} 19. Nh3 {[%clk 0:01:49.8]}
19... O-O-O {[%clk 0:01:41.1]} 20. Ng5 {[%clk 0:01:49.7]} 20... Qe8 {[%clk
0:01:36.1]} 21. Qh3+ {[%clk 0:01:47.7]} 21... Kb7 {[%clk 0:01:36.4]} 22. Ng3
{[%clk 0:01:21.5]} 22... Nxg3 {[%clk 0:01:18.9]} 23. Qxg3 {[%clk 0:01:22.4]}
23... Rh5 {[%clk 0:01:18]} 24. Qg4 {[%clk 0:01:11.8]} 24... a5 {[%clk
0:01:15.5]} 25. Rde1 {[%clk 0:01:05.3]} 25... a4 {[%clk 0:01:10.6]} 26. b3
{[%clk 0:01:01.4]} 26... axb3 {[%clk 0:01:07.2]} 27. cxb3 {[%clk 0:01:02.3]}
27... Ne5 {[%clk 0:00:58.8]} 28. Qg3 {[%clk 0:00:56.3]} 28... Nd3 {[%clk
0:00:57.9]} 29. Re2 {[%clk 0:00:54.2]} 29... Nxc1 {[%clk 0:00:58]} 30. Rxc1
{[%clk 0:00:54.1]} 30... Bd4 {[%clk 0:00:50.6]} 31. Rcc2 {[%clk 0:00:40.8]}
31... Ra8 {[%clk 0:00:50.3]} 32. f4 {[%clk 0:00:34.4]} 32... b4 {[%clk
0:00:28.4]} 33. e5 {[%clk 0:00:32.8]} 33... Qf8 {[%clk 0:00:24.8]} 34. Nf3
{[%clk 0:00:28.9]} 34... Bc3 {[%clk 0:00:20.8]} 35. Ng5 {[%clk 0:00:23.8]} 35...
Qg7 {[%clk 0:00:20.2]} 36. e6 {[%clk 0:00:19.8]} 36... f5 {[%clk 0:00:18.6]} 37.
Rh2 {[%clk 0:00:15.7]} 37... Qd4 {[%clk 0:00:18.1]} 38. Rh1 {[%clk 0:00:14.5]}
38... Rah8 {[%clk 0:00:16.6]} 39. Nf3 {[%clk 0:00:12.9]} 39... Qe3 {[%clk
0:00:15.7]} 40. Qg2 {[%clk 0:00:09.3]} 40... R8h6 {[%clk 0:00:13.4]} 41. a3
{[%clk 0:00:09]} 41... bxa3 {[%clk 0:00:12.7]} 42. Ka2 {[%clk 0:00:05]} 42...
Bb4 {[%clk 0:00:11.7]} 0-1

[Event "Betsys MČR v online bleskovém šachu 2021"]
[Site "Chess.com"]
[Date "2021.04.17"]
[Round "5"]
[White "Krtecci"]
[Black "Ehlundi"]
[Result "1-0"]
[WhiteElo "2091"]
[BlackElo "1764"]
[TimeControl "180+1"]
[EndTime "9:47:50 PDT"]
[Termination "Uživatel Krtecci zvítězil na čas"]

1. e4 {[%clk 0:02:01.5]} 1... c5 {[%clk 0:02:59.6]} 2. Nf3 {[%clk 0:01:44.7]}
2... Nc6 {[%clk 0:02:58.4]} 3. d4 {[%clk 0:01:42.8]} 3... cxd4 {[%clk
0:02:58.7]} 4. Nxd4 {[%clk 0:01:41]} 4... e6 {[%clk 0:02:59.6]} 5. Nc3 {[%clk
0:01:36.9]} 5... Bc5 {[%clk 0:02:59.5]} 6. Nxc6 {[%clk 0:01:36.7]} 6... bxc6
{[%clk 0:02:59]} 7. Bd3 {[%clk 0:01:33.9]} 7... Ne7 {[%clk 0:02:57.9]} 8. O-O
{[%clk 0:01:33.1]} 8... O-O {[%clk 0:02:57.9]} 9. Bg5 {[%clk 0:01:23.6]} 9...
Qc7 {[%clk 0:02:52.4]} 10. Na4 {[%clk 0:01:15.9]} 10... Qe5 {[%clk 0:02:25.7]}
11. Qg4 {[%clk 0:01:15.1]} 11... Ng6 {[%clk 0:02:17.5]} 12. Nxc5 {[%clk
0:01:12.1]} 12... Qxc5 {[%clk 0:02:17.1]} 13. Qg3 {[%clk 0:00:47.8]} 13... e5
{[%clk 0:02:11.6]} 14. Rad1 {[%clk 0:00:39.1]} 14... d5 {[%clk 0:02:06.8]} 15.
exd5 {[%clk 0:00:38.6]} 15... cxd5 {[%clk 0:02:07.1]} 16. c3 {[%clk 0:00:30.8]}
16... e4 {[%clk 0:02:06]} 17. Be2 {[%clk 0:00:28]} 17... Be6 {[%clk 0:02:00.6]}
18. h4 {[%clk 0:00:26.4]} 18... h6 {[%clk 0:01:50.3]} 19. Be3 {[%clk 0:00:25.2]}
19... Qc6 {[%clk 0:01:25.9]} 20. Bh5 {[%clk 0:00:20.3]} 20... Bf5 {[%clk
0:01:18.2]} 21. Rd2 {[%clk 0:00:15.3]} 21... Rad8 {[%clk 0:01:15.9]} 22. Rfd1
{[%clk 0:00:15.6]} 22... Qe6 {[%clk 0:00:58.8]} 23. a3 {[%clk 0:00:14.9]} 23...
Rd7 {[%clk 0:00:54]} 24. Be2 {[%clk 0:00:13.8]} 24... Rfd8 {[%clk 0:00:44.5]}
25. Bb5 {[%clk 0:00:14.1]} 25... Rc7 {[%clk 0:00:36.5]} 26. Ba4 {[%clk
0:00:14.3]} 26... Qf6 {[%clk 0:00:29.3]} 27. Rxd5 {[%clk 0:00:13]} 27... Rxd5
{[%clk 0:00:23]} 28. Rxd5 {[%clk 0:00:13.9]} 28... Re7 {[%clk 0:00:18.4]} 29.
Rd6 {[%clk 0:00:11.7]} 29... Qe5 {[%clk 0:00:17.4]} 30. Qxe5 {[%clk 0:00:11.5]}
30... Rxe5 {[%clk 0:00:17.7]} 31. Bb3 {[%clk 0:00:08.1]} 31... Nxh4 {[%clk
0:00:14.9]} 32. Bxa7 {[%clk 0:00:07.5]} 32... e3 {[%clk 0:00:12.8]} 33. Bxe3
{[%clk 0:00:07.5]} 33... Ng6 {[%clk 0:00:09.7]} 34. a4 {[%clk 0:00:07.7]} 34...
Bc8 {[%clk 0:00:04.8]} 35. Rd5 {[%clk 0:00:07.9]} 35... Rxd5 {[%clk 0:00:04.7]}
36. Bxd5 {[%clk 0:00:08.7]} 36... Ne7 {[%clk 0:00:04.6]} 37. Bf3 {[%clk
0:00:07.8]} 37... Ba6 {[%clk 0:00:04.5]} 38. b4 {[%clk 0:00:07.3]} 38... Kf8
{[%clk 0:00:02.7]} 39. b5 {[%clk 0:00:07.8]} 39... Bc8 {[%clk 0:00:02.3]} 40. a5
{[%clk 0:00:07.7]} 40... Ke8 {[%clk 0:00:02.6]} 41. a6 {[%clk 0:00:08.2]} 1-0

[Event "Betsys MČR v online bleskovém šachu 2021"]
[Site "Chess.com"]
[Date "2021.04.17"]
[Round "5"]
[White "Tassa15"]
[Black "121pepa"]
[Result "0-1"]
[WhiteElo "857"]
[BlackElo "1416"]
[TimeControl "180+1"]
[EndTime "9:47:50 PDT"]
[Termination "Uživatel 121pepa zvítězil na čas"]

1. d4 {[%clk 0:03:00.9]} 1... Nf6 {[%clk 0:02:56.1]} 2. Bg5 {[%clk 0:02:58.8]}
2... e6 {[%clk 0:02:51]} 3. Bxf6 {[%clk 0:02:58.1]} 3... Qxf6 {[%clk 0:02:50.1]}
4. Nf3 {[%clk 0:02:57.9]} 4... d5 {[%clk 0:02:47.9]} 5. e3 {[%clk 0:02:57.5]}
5... c5 {[%clk 0:02:45.1]} 6. c3 {[%clk 0:02:49.1]} 6... Nc6 {[%clk 0:02:43.5]}
7. Bd3 {[%clk 0:02:48.4]} 7... Bd6 {[%clk 0:02:38.3]} 8. h3 {[%clk 0:02:42.9]}
8... O-O {[%clk 0:02:36.9]} 9. Nbd2 {[%clk 0:02:41.1]} 9... Bd7 {[%clk 0:02:33]}
10. Qb3 {[%clk 0:02:29.9]} 10... Rab8 {[%clk 0:02:30.1]} 11. a3 {[%clk
0:02:28.1]} 11... c4 {[%clk 0:02:27.1]} 12. Bxc4 {[%clk 0:02:21.2]} 12... dxc4
{[%clk 0:02:26.4]} 13. Qxc4 {[%clk 0:02:21.1]} 13... a6 {[%clk 0:02:21.9]} 14.
Qd3 {[%clk 0:02:15.6]} 14... b5 {[%clk 0:02:19.8]} 15. O-O {[%clk 0:02:12.9]}
15... Rfc8 {[%clk 0:02:14.8]} 16. Rac1 {[%clk 0:02:07.5]} 16... Ne7 {[%clk
0:02:12]} 17. Ne4 {[%clk 0:02:07]} 17... Qg6 {[%clk 0:02:07.8]} 18. Rfd1 {[%clk
0:01:56.1]} 18... Bc7 {[%clk 0:02:01.1]} 19. Nc5 {[%clk 0:01:40]} 19... Qxd3
{[%clk 0:01:56.4]} 20. Rxd3 {[%clk 0:01:38.6]} 20... Be8 {[%clk 0:01:55.1]} 21.
Nxa6 {[%clk 0:01:35.5]} 21... Ra8 {[%clk 0:01:52.9]} 22. Nc5 {[%clk 0:01:33.7]}
22... Bb6 {[%clk 0:01:51.7]} 23. Ne4 {[%clk 0:01:21.5]} 23... Bc6 {[%clk
0:01:49]} 24. Ned2 {[%clk 0:01:20]} 24... h6 {[%clk 0:01:38.9]} 25. Ne5 {[%clk
0:01:19.2]} 25... Bd5 {[%clk 0:01:34.7]} 26. Ndf3 {[%clk 0:01:12.2]} 26... Ng6
{[%clk 0:01:28.7]} 27. Nxg6 {[%clk 0:01:11]} 27... fxg6 {[%clk 0:01:23.3]} 28.
Ne5 {[%clk 0:01:09.8]} 28... Kh7 {[%clk 0:01:18.5]} 29. Nd7 {[%clk 0:01:01.6]}
29... Ba5 {[%clk 0:01:13.8]} 30. Rdd1 {[%clk 0:00:58.3]} 30... Bb3 {[%clk
0:01:10.2]} 31. Re1 {[%clk 0:00:57.2]} 31... Rd8 {[%clk 0:01:07.1]} 32. Nc5
{[%clk 0:00:51.3]} 32... Bc4 {[%clk 0:00:57]} 33. Ne4 {[%clk 0:00:41.7]} 33...
Bd3 {[%clk 0:00:47.1]} 34. Nc5 {[%clk 0:00:38.7]} 34... Bc4 {[%clk 0:00:46.4]}
35. Ne4 {[%clk 0:00:36.3]} 35... e5 {[%clk 0:00:44.4]} 36. Nc5 {[%clk
0:00:18.7]} 36... exd4 {[%clk 0:00:42]} 37. exd4 {[%clk 0:00:18.2]} 37... Re8
{[%clk 0:00:39.7]} 38. Nb7 {[%clk 0:00:12.9]} 38... Bb6 {[%clk 0:00:31.1]} 39.
Nd6 {[%clk 0:00:11.8]} 39... Rxe1+ {[%clk 0:00:28.9]} 40. Rxe1 {[%clk
0:00:10.4]} 40... Kg8 {[%clk 0:00:19.8]} 41. Re6 {[%clk 0:00:04.5]} 41... Bxe6
{[%clk 0:00:16.4]} 42. Ne4 {[%clk 0:00:01.8]} 42... Bd5 {[%clk 0:00:16.1]} 43.
Ng3 {[%clk 0:00:01.1]} 43... Bxg2 {[%clk 0:00:14.9]} 0-1